Cogmind - Beta 9.5 @@@ ROGUE MODE // 2020.04.01 @ 16:00:31 // AFD2020/Player2 Player: eldritch Result: Self-destructed Performance ------------- Evolutions (2) 1000 Regions Visited (5) 1000 Robots Destroyed (8) 40 Value Destroyed (185) 185 Prototype IDs (25) 500 Alien Tech Used (0) 0 Bonus (454) 454 TOTAL SCORE: 3179 Bonus ------- Follower Combat Kills 216 Aligned with FarCom 300 Friendly Fire -62 Cogmind --------- Core Integrity 454/550 Matter 262/450 Energy 265/265 System Corruption 0% Temperature Cool (117) Movement Walking (150) Ox1 Location -8/Materials Parts ------- > --- POWER (1) -------- Improved Ion Engine > --- PROPULSION (4) --- Aluminum Leg Aluminum Leg Aluminum Leg > --- UTILITY (3) ------ Disposable Heat Sink High-capacity Storage Unit Compact Matter Pod > --- WEAPON (3) ------- Electrolaser Electrolaser Light Assault Rifle > --- INVENTORY (12) --- Medium Storage Unit Medium Storage Unit High-capacity Storage Unit Improved Terrain Scanner Armor Integrity Analyzer Improved EM Shotgun Electrolaser Latent Energy Streamer Rocket Launcher Datajack Mining Laser Peak State ------------ > --- POWER ------------ Improved Ion Engine > --- PROPULSION ------- Aluminum Leg Aluminum Leg Aluminum Leg > --- UTILITY ---------- Disposable Heat Sink High-capacity Storage Unit Compact Matter Pod > --- WEAPON ----------- Improved EM Shotgun Electrolaser Light Assault Rifle > --- INVENTORY -------- Medium Storage Unit Medium Storage Unit High-capacity Storage Unit Improved Terrain Scanner Armor Integrity Analyzer Electrolaser Electrolaser Latent Energy Streamer Rocket Launcher Datajack Mining Laser [Rating: 20] Favorites ----------- Power Improved Ion Engine Engine Improved Ion Engine Propulsion Aluminum Leg Leg Aluminum Leg Utility Disposable Heat Sink Device Disposable Heat Sink Storage High-capacity Storage Unit Weapon Light Assault Rifle Energy Gun Electrolaser Ballistic Gun Light Assault Rifle Build | -11 -10 -10 -10 -9 -8 ------- Run | Scr Mat Min Exi Min Mat Slots Evolved 4 | . . . . . 4 Power . | . . . . . . Propulsion 2 | . . . . . 2 Utility 1 | . . . . . 1 Weapon 1 | . . . . . 1 Parts Attached 9 | . 2 . 2 . 5 Power 1 | . 1 . . . . Engine 1 | . 1 . . . . Core . | . . . . . . Reactor . | . . . . . . Propulsion 1 | . . . . . 1 Treads . | . . . . . . Leg 1 | . . . . . 1 Wheel . | . . . . . . Hover . | . . . . . . Flight . | . . . . . . Utility 4 | . 1 . 2 . 1 Device 1 | . 1 . . . . Storage 3 | . . . 2 . 1 Processor . | . . . . . . Hackware . | . . . . . . Protection . | . . . . . . Artifact . | . . . . . . Weapon 3 | . . . . . 3 Energy Gun 3 | . . . . . 3 Energy Cannon . | . . . . . . Ballistic Gun . | . . . . . . Ballistic Cannon . | . . . . . . Launcher . | . . . . . . Special Weapon . | . . . . . . Impact Weapon . | . . . . . . Slashing Weapon . | . . . . . . Piercing Weapon . | . . . . . . Special Melee Weapon . | . . . . . . Unidentified Prototypes 1 | . . . . . 1 Parts Lost . | . . . . . . Power . | . . . . . . Propulsion . | . . . . . . Utility . | . . . . . . Weapon . | . . . . . . Highest Loss Streak . | . . . . . . Average Slot Usage (%) 96 | . 94 100 100 100 80 Engine 13 | . 14 14 14 14 9 Leg 27 | . 28 28 28 28 27 Device 12 | . 8 14 14 14 9 Storage 14 | . 14 14 14 14 14 Ballistic Gun 26 | . 28 28 28 28 16 Naked Turns . | . . . . . . Heaviest Build 48 | 10 15 15 43 43 48 Greatest Support 30 | 20 20 20 20 20 30 Greatest Overweight (x) 2 | . . . 2 2 1 Average Overweight (x) . | . . . 1 2 1 Largest Inventory Capacity 12 | . 6 6 12 12 12 Average Capacity 9 | . 6 6 10 12 12 Most Carried 11 | . 6 6 10 10 11 Average Carried 8 | . 5 6 8 10 9 Final Capacity 12 | 6 6 6 12 12 12 Final Carried 11 | 6 6 6 10 10 11 Class Distribution -------------------- 95% | Mutant 4% | Skirmisher Dominant Class ---------------- Mutant | -10/Materials Mutant | -10/Mines Mutant | -10/Exiles Mutant | -9/Mines Mutant | -8/Materials Resources | -11 -10 -10 -10 -9 -8 ----------- Run | Scr Mat Min Exi Min Mat Matter Collected 319 | 192 30 34 . 36 27 Remotely . | . . . . . . Salvage Created 260 | . 10 113 . 41 96 Parts 10 | . 2 1 . 4 3 Haulers Intercepted 1 | . . . . . 1 Recyclers Shooed . | . . . . . . Parts Field Recycled . | . . . . . . Retrieved Matter . | . . . . . . Parts Self-Destructed . | . . . . . . Prevented . | . . . . . . Kills | -11 -10 -10 -10 -9 -8 ------- Run | Scr Mat Min Exi Min Mat Combat Hostiles Destroyed 3 | . . 2 . . 1 Guns 3 | . . 2 . . 1 Classes Destroyed 5 | . 1 2 . 1 1 Worker 2 | . . . . 2 . Tunneler 1 | . . 1 . . . Hauler 1 | . . . . . 1 Operator 1 | . 1 . . . . Grunt 3 | . . 2 . . 1 Best Kill Streak 2 | . 1 2 . 1 1 Combat Bots Only 2 | . . 2 . . 1 Max Kills in Single Turn 1 | . 1 1 . 1 1 Gunslinging . | . . . . . . Exploded . | . . . . . . Melee . | . . . . . . Uniques/NPCs Destroyed . | . . . . . . Combat | -11 -10 -10 -10 -9 -8 -------- Run | Scr Mat Min Exi Min Mat Damage Taken 133 | . . 133 . . . Core 11 | . . 11 . . . Absorbed by Shields . | . . . . . . Core Remaining (%) 97 | 100 . . . 95 . Volleys Fired 22 | . 3 8 . 2 9 Largest 3 | . 2 2 . 2 3 Hottest 146 | . 40 40 . 40 146 Shots Fired 53 | . 6 16 . 4 27 Gun 53 | . 6 16 . 4 27 Cannon . | . . . . . . Launcher . | . . . . . . Special . | . . . . . . Kinetic 37 | . 6 16 . 4 11 Thermal 15 | . . . . . 15 Explosive . | . . . . . . Electromagnetic 1 | . . . . . 1 Robot Hit Streak 10 | . 3 10 . 4 6 Robot Miss Streak 4 | . 2 1 . . 4 Penetration Max . | . . . . . . Secondary Targets 2 | . . 1 . . 1 Max Gunslinging Chain 1 | . . 1 . . 1 Shots Hit Robots 29 | . 4 12 . 2 11 Core Hits 14 | . 2 6 . 2 4 Critical Hits . | . . . . . . Critical Kills . | . . . . . . Critical Parts Destroyed . | . . . . . . Melee Attacks . | . . . . . . Impact . | . . . . . . Slashing . | . . . . . . Piercing . | . . . . . . Sneak Attacks . | . . . . . . Combat Hostiles . | . . . . . . Follow-up Attacks . | . . . . . . Damage Inflicted 386 | . 32 143 . 21 190 Guns 386 | . 32 143 . 21 190 Cannons . | . . . . . . Explosions . | . . . . . . Melee . | . . . . . . Ramming . | . . . . . . Kinetic 248 | . 32 143 . 21 52 Thermal 138 | . . . . . 138 Explosive . | . . . . . . Electromagnetic . | . . . . . . Impact . | . . . . . . Slashing . | . . . . . . Piercing . | . . . . . . Highest Corruption . | . . . . . . Average Corruption . | . . . . . . Corruption Purged . | . . . . . . Overload Shots . | . . . . . . Overflow Damage . | . . . . . . Projectiles . | . . . . . . Explosions . | . . . . . . Melee . | . . . . . . Knockbacks . | . . . . . . Impact . | . . . . . . Kinetic . | . . . . . . Secondary . | . . . . . . Self-Inflicted Damage . | . . . . . . Shots . | . . . . . . Rammed . | . . . . . . Targets Rammed . | . . . . . . Kicked . | . . . . . . Crushed . | . . . . . . Highest Temperature 199 | . . 34 . 2 199 Average Temperature 60 | . . 14 . 1 93 Received Heat Transfer 75 | . . 75 . . . Siege Activations . | . . . . . . Robots Corrupted . | . . . . . . Combat Hostiles . | . . . . . . Parts Fried . | . . . . . . Impact Corruptions . | . . . . . . Robots Melted . | . . . . . . Combat Hostiles . | . . . . . . Parts Melted . | . . . . . . Heat Transferred 296 | . . . . . 296 Parts Sabotaged . | . . . . . . Parts Stolen . | . . . . . . Parts Stripped . | . . . . . . Power Chain Reactions . | . . . . . . Missiles Intercepted . | . . . . . . Alert | -11 -10 -10 -10 -9 -8 ------- Run | Scr Mat Min Exi Min Mat Peak Influence 390 | . 106 108 . 21 390 Average Influence 59 | . 70 103 . 14 77 Maximum Alert Level 1 | . . . . . 1 Low Security (%) 96 | . 100 100 . 100 78 Level 1 3 | . . . . . 21 Level 2 . | . . . . . . Level 3 . | . . . . . . Level 4 . | . . . . . . Level 5 . | . . . . . . High Security . | . . . . . . Max Security . | . . . . . . Squads Dispatched 3 | . 1 . . . 2 Investigation . | . . . . . . Extermination . | . . . . . . Reinforcement 3 | . 1 . . . 2 Assault . | . . . . . . Garrison . | . . . . . . Intercept . | . . . . . . Construction Impeded 1 | . . . . . 1 Haulers Reinforced . | . . . . . . Stealth | -11 -10 -10 -10 -9 -8 --------- Run | Scr Mat Min Exi Min Mat Distress Signals 2 | . 1 . . . 1 Communications Jammed . | . . . . . . Distress Signals . | . . . . . . Times Spotted 17 | . 5 2 . . 10 Peak Tracking Total 5 | . 1 2 . . 5 Tactical Retreats . | . . . . . . Traps | -11 -10 -10 -10 -9 -8 ------- Run | Scr Mat Min Exi Min Mat Traps Triggered . | . . . . . . Indirectly . | . . . . . . Trap Hack Attempts . | . . . . . . Triggered . | . . . . . . Disarmed . | . . . . . . Reprogrammed . | . . . . . . Reused . | . . . . . . Traps Extracted . | . . . . . . Installed . | . . . . . . Triggered . | . . . . . . Machines | -11 -10 -10 -10 -9 -8 ---------- Run | Scr Mat Min Exi Min Mat Machines Disabled 3 | . . . . . 3 Max in Single Turn . | . . . . . . Machines Sabotaged . | . . . . . . Garrisons Compromised . | . . . . . . Overloaded Fab Kills . | . . . . . . Fab Network Shutdowns . | . . . . . . Hacking | -11 -10 -10 -10 -9 -8 --------- Run | Scr Mat Min Exi Min Mat Machines Accessed 4 | . . . 2 1 1 Terminals 2 | . . . . 1 1 Fabricators . | . . . . . . Repair Stations . | . . . . . . Recycling Units . | . . . . . . Scanalyzers . | . . . . . . Garrison Access . | . . . . . . Total Hacks 9 | . . . 3 2 4 Successful 5 | . . . 3 1 1 Failed 4 | . . . . 1 3 Catastrophic . | . . . . . . Database Lockouts . | . . . . . . Manual 3 | . . . 1 2 . Terminals 6 | . . . . 2 4 Fabricators . | . . . . . . Repair Stations . | . . . . . . Recycling Units . | . . . . . . Scanalyzers . | . . . . . . Garrison Access . | . . . . . . Terminal Hacks 5 | . . . 3 1 1 Record 2 | . . . 2 . . Prototype ID Bank 1 | . . . . . 1 Level Access Points 1 | . . . . 1 . EX-Prototype ID Bank 1 | . . . 1 . . Fabricator Hacks . | . . . . . . Repair Station Hacks . | . . . . . . Recycling Unit Hacks . | . . . . . . Scanalyzer . | . . . . . . Garrison Access Hacks . | . . . . . . Unauthorized Hacks . | . . . . . . Terminals . | . . . . . . Fabricators . | . . . . . . Repair Stations . | . . . . . . Recycling Units . | . . . . . . Scanalyzers . | . . . . . . Garrison Access . | . . . . . . Data Cores Recovered . | . . . . . . Used . | . . . . . . Hacking Detections 1 | . . . . . 1 Full Trace Events . | . . . . . . Feedback Events . | . . . . . . Feedback Blocked . | . . . . . . Robot Schematics Acquired . | . . . . . . Robots Built . | . . . . . . Matter . | . . . . . . Time . | . . . . . . Total Robot Build Rating . | . . . . . . Part Schematics Acquired . | . . . . . . Parts Built . | . . . . . . Matter . | . . . . . . Time . | . . . . . . Total Part Build Rating . | . . . . . . Parts Repaired . | . . . . . . Time . | . . . . . . Parts Recycled . | . . . . . . Recycled Matter . | . . . . . . Retrieved Matter . | . . . . . . Retrieved Components . | . . . . . . Parts Scanalyzed . | . . . . . . Part Schematics Acquired . | . . . . . . Parts Damaged . | . . . . . . Bothacking | -11 -10 -10 -10 -9 -8 ------------ Run | Scr Mat Min Exi Min Mat Used RIF Installer . | . . . . . . Robots Hacked . | . . . . . . Non-combat . | . . . . . . Combat . | . . . . . . Robot Hacks Applied . | . . . . . . Relay Couplers Released . | . . . . . . Robots Rewired . | . . . . . . Allies Hacked . | . . . . . . Hacks Repelled . | . . . . . . Allies | -11 -10 -10 -10 -9 -8 -------- Run | Scr Mat Min Exi Min Mat Total Allies 4 | . 1 . . 3 . Largest Group 4 | . 1 1 1 4 4 Highest-Rated Group 108 | . 61 61 61 101 108 Highest-Rated Ally 69 | . 61 61 61 61 69 Total Orders 2 | . . . . 1 1 GUARD 2 | . . . . 1 1 Ally Attacks 36 | . 11 . . . 25 Total Damage 1213 | . 121 . . . 1092 Kills 18 | . 3 . . . 15 Allies Corrupted . | . . . . . . Allies Melted . | . . . . . . Intel | -11 -10 -10 -10 -9 -8 ------- Run | Scr Mat Min Exi Min Mat Robot Analysis Total . | . . . . . . Derelict Logs Recovered 1 | . . . . 1 . Drone Launches . | . . . . . . Drone Recoveries . | . . . . . . Exploration | -11 -10 -10 -10 -9 -8 ------------- Run | Scr Mat Min Exi Min Mat Turns Passed 2022 | . 277 322 705 474 244 Spaces Moved 1298 | 1 204 249 446 261 137 Core . | . . . . . . Treads . | . . . . . . Legs 1298 | 1 204 249 446 261 137 Wheels . | . . . . . . Hover . | . . . . . . Flight . | . . . . . . Fastest Speed 120 | 120 120 120 120 180 150 Average Speed 147 | 120 120 120 157 180 150 Slowest Speed 180 | 120 120 120 180 180 150 Overloaded Moves . | . . . . . . Propulsion Burnouts . | . . . . . . Robots Hopped . | . . . . . . Cave-ins Triggered . | . . . . . . Exploration Rate (%) 31 | 2 22 40 71 40 14 Regions Visited 5 Branch Regions 3 Pre-discovered Areas 3 | . . 1 1 1 . Known Exits Taken 1 | . . . . 1 . Unknown Exits Taken 4 | 1 1 1 1 . . Scrap Searched . | . . . . . . Spaces Dug . | . . . . . . Terrain Destroyed . | . . . . . . Melee . | . . . . . . Projectile . | . . . . . . AOE . | . . . . . . Actions | -11 -10 -10 -10 -9 -8 --------- Run | Scr Mat Min Exi Min Mat Total 1360 | . 234 258 451 262 155 Wait 16 | . 13 2 . . 1 Move 1293 | . 203 248 445 260 137 Hop . | . . . . . . Pick Up 11 | . 6 . 3 . 2 Fast Attach 4 | . 1 . . . 3 Attach 1 | . . . . . 1 Detach . | . . . . . . Swap 4 | . 1 . 2 . 1 Drop 9 | . 7 . 1 . 1 Fire 22 | . 3 8 . 2 9 Melee . | . . . . . . Ram . | . . . . . . Kick . | . . . . . . Crush . | . . . . . . Escape Stasis . | . . . . . . Rewire . | . . . . . . Trap . | . . . . . . Miscellaneous . | . . . . . . Route ------- -11/Scrapyard -10/Materials -10/Mines -10/Exiles -9/Mines (discovered 2 exits: *Mat x2) -8/Materials History --------- Turn | Location | Event 1 | -11/Scrapyard | Discovered new exit (range 0) 1 | -11/Scrapyard | Entered Materials 48 | -10/Materials | Discovered new exit (range 13) 278 | -10/Materials | Entered Mines 278 | -10/Mines | Accompanied by 1 ally 314 | -10/Mines | Build established: Mutant 319 | -10/Mines | Received a Rocket Launcher from a helpful Derelict 540 | -10/Mines | Learned location of Storage (-8) 594 | -10/Mines | Deemed a non-threat by the Exiles lab entrance 596 | -10/Mines | Discovered new exit (range 5) 600 | -10/Mines | Entered Exiles 600 | -10/Exiles | Accompanied by 1 ally 633 | -10/Exiles | Met 8R-AWN 650 | -10/Exiles | Met EX-HEX 734 | -10/Exiles | Met EX-DEC 758 | -10/Exiles | Learned location of Zion (-7) 1027 | -10/Exiles | Met EX-BIN 1061 | -10/Exiles | Aligned with FarCom system 1063 | -10/Exiles | Given EX-Vault access code 1110 | -10/Exiles | Opened EX-Vault 1123 | -10/Exiles | Found Latent Energy Streamer 1158 | -10/Exiles | Warned to stay clear of 0b10 Research branches 1284 | -10/Exiles | Discovered new exit (range 14) 1305 | -10/Exiles | Left Exiles lab with Latent Energy Streamer 1305 | -10/Exiles | Entered Mines 1305 | -9/Mines | Accompanied by 1 ally 1313 | -9/Mines | Identified exit to Materials 1345 | -9/Mines | Met a Derelict bent on vengeance 1511 | -9/Mines | Assisted by bots powering up and referring to "LRC-V3" 1779 | -9/Mines | Entered Materials 1779 | -8/Materials | Accompanied by 4 allies 1779 | -8/Materials | Evolved 4 slots: Propulsion x2, Utility x1, Weapon x1 2023 | -8/Materials | Self-destructed Last Messages --------------- 02005_ U-05 Engineer destroyed. 02005_ K-01 Serf collects debris. 02006_ G-47 Trooper knocked back. 02006_ G-47 Trooper destroyed. 02006_ U-05 Engineer lays Concrete. 02008_ K-01 Serf collects debris. 02009_ U-05 Engineer builds a Wall. 02012_ K-01 Serf collects debris. 02013_ U-05 Engineer builds a Door. 02016_ K-01 Serf collects debris. 02017_ U-05 Engineer builds a Wall. 02018_ Player 2 attaches Hover Unit. 02018_ G-47 Trooper destroyed. 02018_ Switching to secondary target: G-47 Trooper. 02019_ K-01 Serf collects debris. 02020_ G-47 Trooper destroyed. 02020_ K-01 Serf collects debris. 02022_ U-05 Engineer lays Concrete. 02023_ K-01 Serf collects debris. 02023_ W-25 Informer knocked back. Map ----- +----------------------------------------------------+ | ?????????????????????????????????????????????????? | | ?????????????????????????????????????????????????? | | ?????????????????????????????????????????????????? | | ?????????????????????????????????????????????????? | | ?????????????????????????????????????????????????? | | ?????????????????????????????????????????????????? | | ?????????????????????????????????????????????????? | | ?????????????????????????????????????????????????? | | ?????????????????????????????????????????????????? | | ?????????????????????????????????????????????????? | | ???????????????????????#?????????????????????????? | | ????????????????????? ????????????????????????? | | ????????????????????# ????????????????????????? | | ????????????????????# ????????????????????????? | | ????????????????????# ????????????????????????? | | ???????????????#????# ??????????????????????? | | ???????????????# ???# ""??????????????????????? | | ???????????????# g??# ""??????????????????????? | | ???????????? ?# g ?# ""??????????????????????? | | ????????????" # ## ??????????????????????? | | ????????????" ; ######?????????????????? | | ???????????"" # ??????????????????? | | ???????????? ;^ k ?????Y?????????????? | | ??????????#####; ????????????????????? | | ?????????? %k* #?????????????????????? | | ?????????? %! ! ^ @##########?????????????? | | ?????????? =% %!! # ! #?????????????? | | ??????##+#?##*##u !@! # "" +?????????????? | | ??????? # # [ ]!! w k* ! ! #?????????????? | | ????????? ##### [ ] [%!=%"" #?????????????? | | ?????????? + o[ k#[%[[ """#?????????????? | | ???????????######+##### u[[%! S"#?????????????? | | ???????????# [= [# #=!= """#?????????????? | | ???????????# [ = # """#?????????????? | | ????????????# # # #?????????????? | | ????????????# # # ######?????????????? | | ????????????# # #####??????????????????? | | ????????????# # #??????????????????????? | | ????????????# + #??????????????????????? | | ????????????# # #??????????????????????? | | ????????????########### #??????????????????????? | | ???????????# """"""" ## ##?????#######?????????? | | ???????????# """"""" # ####### #?????????? | | ???????????# """"""" # #?????????? | | ???????????# """"""" + T #?????????? | | ???????????# """"""" # #?????????? | | ???????????# # ###+### #?????????? | | ???????????# ## ### ## ##?????????? | | ???????????# ## #?# ! ## #??????????? | | ???????????###+######## #?# !! ## #??????????? | +----------------------------------------------------+ Best States ------------- Heat Dissipation 31 Coolant Potential 50 Energy Generation 12 Energy Capacity 265 Matter Stores 300 Matter Capacity 450 Sight Range 16 Terrain Scan Density 10 Evasion (%) 40 Item Schematics ----------------- None Robot Schematics ------------------ None Fabricated ------------ Nothing Alien Tech Used ----------------- None Achievements -------------- None Challenges ------------ None Game ------ Seed PotentialIntegratedMembrane Manual? 0 Play Time 00:11:42 Cumulative 229.3 hours Start 2020.04.01 @ 15:37:55 End 2020.04.01 @ 16:00:31 Sessions 1 Manual Loads 0 Difficulty Rogue Special Mode AFD2020/Player2 Game No. 515 Rogue 515 Adventurer 0 Explorer 0 Win Type - Total 4 Types 3/0/0/1/0/0/0 Lore% 64 Gallery% 67 Achievement% 56 Wizard Run 0 Options --------- ASCII 0 Keyboard 0 Movement Arrows Keybinds 0 Fullscreen 1 Font 16/SmallcapsGlow Map View 75x55 Tactical HUD 1 Map Filters NONE Filters NONE Steam 1 RUN: ce92c22a-53bc-4284-8d41-99816139104d